bitfinex-derivatives/quotes_ETHF0:USTF0_20260118
["timestamp","ask_amount","ask_price","bid_price","bid_amount"]
[1768701383391,1.3582939,3302.1,3301.5,0.97937057]
[1768701383593,1.04586173,3302.0,3301.5,0.97937057]
[1768701383797,0.00270232,3302.3,3301.5,0.97937057]
[1768701383997,1.35816288,3302.2,3301.5,0.97937057]
[1768701384300,1.35816288,3302.1,3301.5,0.97937057]
[1768701384599,0.00270232,3302.3,3301.5,0.97937057]
[1768701384900,1.35805717,3302.2,3301.5,0.97937057]
[1768701385103,1.35805717,3302.1,3301.5,0.97937057]
[1768701385296,0.00270232,3302.3,3301.5,0.97937057]
[1768701385496,1.35796091,3302.2,3301.5,0.97937057]
[1768701385695,1.35796091,3302.1,3301.5,0.97937057]
[1768701385900,0.00270232,3302.3,3301.5,0.97937057]
[1768701386103,1.35795759,3302.2,3301.5,0.97937057]
[1768701386292,1.35795759,3302.1,3301.5,0.97937057]
[1768701386494,0.00270232,3302.3,3301.5,0.97937057]
[1768701386694,1.35787248,3302.2,3301.5,0.97937057]
[1768701386895,1.35787248,3302.1,3301.5,0.97937057]
[1768701387193,0.00270232,3302.3,3301.5,0.97937057]
[1768701387394,1.35783849,3302.2,3301.5,0.97937057]
[1768701387696,1.35783849,3302.1,3301.5,0.97937057]
[1768701387890,0.37411212,3302.3,3301.3,0.97937057]
[1768701388094,1.35779347,3302.2,3301.3,0.97937057]
[1768701388291,1.35779347,3302.1,3301.3,0.97937057]
[1768701388496,0.37411212,3302.3,3301.3,0.97937057]
[1768701388696,1.3577436,3302.2,3301.3,0.97937057]
[1768701388896,1.3577436,3302.1,3301.3,0.97937057]
[1768701389203,0.37411212,3302.3,3301.3,0.97937057]
[1768701389406,1.35771514,3302.2,3301.7,0.3804842]
[1768701389599,0.00270232,3302.3,3301.7,0.3804842]
[1768701389907,1.35772863,3302.2,3301.5,0.97937057]
[1768701390096,0.00270232,3302.3,3301.5,0.97937057]
[1768701390297,1.35785983,3302.2,3301.5,0.97937057]
[1768701390595,0.00270232,3302.3,3301.5,0.97937057]
[1768701390791,1.35781568,3302.2,3301.5,0.97937057]
[1768701390991,0.00270232,3302.3,3301.5,0.97937057]
[1768701391207,1.35781824,3302.2,3301.5,0.97937057]
[1768701391402,0.00270232,3302.3,3301.5,0.97937057]
[1768701391606,1.35778304,3302.2,3301.5,0.97937057]
[1768701391904,0.00270232,3302.3,3301.5,0.97937057]
[1768701392106,1.35777058,3302.2,3301.5,0.97937057]
[1768701392306,0.00270232,3302.3,3301.5,0.97937057]
[1768701392508,1.35775066,3302.2,3301.5,0.97937057]
[1768701392699,0.00270232,3302.3,3301.5,0.97937057]
[1768701392899,1.35774947,3302.2,3301.5,0.97937057]
[1768701393100,0.00270232,3302.3,3301.5,0.97937057]
[1768701393301,1.3577538,3302.2,3301.5,0.97937057]
[1768701393501,0.00270232,3302.3,3301.5,0.97937057]
[1768701393701,1.35775202,3302.2,3301.5,0.97937057]
[1768701393902,0.00270232,3302.3,3301.5,0.97937057]
[1768701394210,1.35775159,3302.2,3301.5,0.97937057]
[1768701394410,1.04545005,3302.1,3301.5,0.97937057]
[1768701394602,0.00270232,3302.3,3301.5,0.97937057]
[1768701394804,1.35775939,3302.2,3301.5,0.97937057]
[1768701395004,1.04544787,3302.1,3301.5,0.97937057]
[1768701395204,0.00270232,3302.3,3301.5,0.97937057]
[1768701395508,1.35775889,3302.2,3301.5,0.97937057]
[1768701395709,1.04544185,3302.1,3301.5,0.97937057]
[1768701395910,0.00270232,3302.3,3301.5,0.97937057]
[1768701396107,1.35778247,3302.2,3301.5,0.97937057]
[1768701396309,1.04546555,3302.1,3301.5,0.97937057]
[1768701396508,0.00270232,3302.3,3301.5,0.97937057]
[1768701396708,1.35781346,3302.2,3301.5,0.97937057]
[1768701396911,1.04548941,3302.1,3301.5,0.97937057]
[1768701397110,0.00270232,3302.3,3301.5,0.97937057]
[1768701397311,1.35781353,3302.2,3301.5,0.97937057]
[1768701397513,1.04548947,3302.1,3301.5,0.97937057]
[1768701397715,0.00270232,3302.3,3301.5,0.97937057]
[1768701397909,1.35783471,3302.2,3301.5,0.97937057]
[1768701398113,1.04550577,3302.1,3301.5,0.97937057]
[1768701398410,0.00270232,3302.3,3301.5,0.97937057]
[1768701398614,1.35716802,3302.2,3301.5,0.97937057]
[1768701398911,1.04483033,3302.1,3301.5,0.97937057]
[1768701399212,0.00270232,3302.3,3301.5,0.97937057]
[1768701399409,1.3572184,3302.2,3301.5,0.97937057]
[1768701399714,1.04486909,3302.1,3301.5,0.97937057]
[1768701400007,0.00270232,3302.3,3301.5,0.97937057]
[1768701400210,1.35722023,3302.2,3301.5,0.97937057]
[1768701400402,1.35722023,3302.1,3301.5,0.97937057]
[1768701400603,0.00270232,3302.3,3301.5,0.97937057]
[1768701400802,1.35727061,3302.2,3301.5,0.97937057]
[1768701401007,1.35727061,3302.1,3301.5,0.97937057]
[1768701401209,0.00270232,3302.3,3301.5,0.97937057]
[1768701401409,1.35729401,3302.2,3301.5,0.97937057]
[1768701401608,1.35729401,3302.1,3301.5,0.97937057]
[1768701401904,0.00270232,3302.3,3301.5,0.97937057]
[1768701402105,1.74263005,3302.2,3301.2,0.97937057]
[1768701402310,1.35730527,3302.1,3301.2,0.97937057]
[1768701402514,1.35730527,3302.0,3301.2,0.97937057]
[1768701402718,1.04493574,3301.9,3301.2,0.97937057]
[1768701402916,0.38532478,3302.2,3301.2,0.97937057]
[1768701403218,1.35717819,3302.1,3301.2,0.97937057]
[1768701403415,1.35717819,3302.0,3301.2,0.97937057]
[1768701403616,1.04483614,3301.9,3301.2,0.97937057]
[1768701403818,0.38532478,3302.2,3301.2,0.97937057]
[1768701404015,1.35198508,3302.1,3301.2,0.97937057]
[1768701404207,1.35198508,3302.0,3301.2,0.97937057]
[1768701404409,1.04487349,3301.9,3301.2,0.97937057]
[1768701404609,0.38532478,3302.2,3301.2,0.97937057]
[1768701404810,1.35204343,3302.1,3301.2,0.97937057]
[1768701405010,1.35204343,3302.0,3301.2,0.97937057]
[1768701405310,1.04491858,3301.9,3301.2,0.97937057]
[1768701405510,0.38532478,3302.2,3301.2,0.97937057]
[1768701405711,1.35210431,3302.1,3301.2,0.97937057]
[1768701405913,1.35210431,3302.0,3301.2,0.97937057]
[1768701406113,1.04496559,3301.9,3301.2,0.97937057]
[1768701406320,0.38532478,3302.2,3301.2,0.97937057]
[1768701406527,1.35205692,3302.1,3301.2,0.97937057]
[1768701406720,1.35205692,3302.0,3301.2,0.97937057]
[1768701407019,1.04492896,3301.9,3301.4,0.97937057]
[1768701407222,0.38532478,3302.2,3300.7,0.31910591]
[1768701407406,1.35205244,3302.1,3301.4,0.97937057]
[1768701407606,1.35205244,3302.0,3301.4,0.97937057]
[1768701407807,1.04492538,3301.9,3301.4,0.97937057]
[1768701408022,0.38532478,3302.2,3301.4,0.97937057]
[1768701408222,1.35204613,3302.1,3301.4,0.97937057]
[1768701408423,1.35204613,3302.0,3301.4,0.97937057]
[1768701408622,1.35204613,3301.9,3301.4,0.97937057]
[1768701408921,0.38532478,3302.2,3301.4,0.97937057]
[1768701409115,1.35205659,3302.1,3301.4,0.97937057]
[1768701409320,1.35205659,3302.0,3301.4,0.97937057]
[1768701409521,1.35205659,3301.9,3301.4,0.97937057]
[1768701409710,0.38532478,3302.2,3301.4,0.97937057]
[1768701409914,1.3520751,3302.1,3301.4,0.97937057]
[1768701410123,1.3520751,3302.0,3301.4,0.97937057]
[1768701410321,1.35207925,3301.9,3301.4,0.97937057]
[1768701410524,0.00270232,3302.3,3301.6,0.97937057]
[1768701410718,1.35210901,3302.2,3301.6,0.97937057]
[1768701410921,1.35210901,3302.1,3301.6,0.97937057]
[1768701411221,1.35210901,3302.0,3301.6,0.97937057]
[1768701411415,1.04496935,3301.9,3301.6,0.97937057]
[1768701411617,0.00270232,3302.3,3301.6,0.97937057]
[1768701411816,1.35208974,3302.2,3301.6,0.97937057]
[1768701412025,1.35208974,3302.1,3301.6,0.97937057]
[1768701412227,1.35208974,3302.0,3301.6,0.97937057]
[1768701412432,1.04495448,3301.9,3301.6,0.97937057]
[1768701412622,0.00270232,3302.3,3301.6,0.97937057]
[1768701412921,1.35206666,3302.2,3301.6,0.97937057]
[1768701413124,1.35206666,3302.1,3301.6,0.97937057]
[1768701413324,1.35206666,3302.0,3301.6,0.97937057]
[1768701413522,1.04493674,3301.9,3301.6,0.97937057]
[1768701413723,0.00270232,3302.3,3301.6,0.97937057]
[1768701413923,1.35199039,3302.2,3301.6,0.97937057]
[1768701414122,1.35199039,3302.1,3301.6,0.97937057]
[1768701414330,1.35199039,3302.0,3301.6,0.97937057]
[1768701414632,1.04487779,3301.9,3301.6,0.97937057]
[1768701414821,0.00270232,3302.3,3301.6,0.97937057]
[1768701415024,1.3519776,3302.2,3301.6,0.97937057]
[1768701415221,1.3519776,3302.1,3301.6,0.97937057]
[1768701415427,1.3519776,3302.0,3301.6,0.97937057]
[1768701415631,1.04486808,3301.9,3301.6,0.97937057]
[1768701415828,0.00270232,3302.3,3301.6,0.97937057]
[1768701416030,1.35185637,3302.2,3301.6,0.97937057]
[1768701416229,1.35185637,3302.1,3301.6,0.97937057]
[1768701416428,1.35185498,3302.0,3301.6,0.97937057]
[1768701416627,1.04477435,3301.9,3301.6,0.97937057]
[1768701416831,0.00270232,3302.3,3301.6,0.97937057]
[1768701417029,1.35185166,3302.2,3301.6,0.97937057]
[1768701417327,1.35185166,3302.1,3301.6,0.97937057]
[1768701417528,1.35185166,3302.0,3301.6,0.97937057]
[1768701417727,1.04477072,3301.9,3301.6,0.97937057]
[1768701417933,0.00270232,3302.3,3301.6,0.97937057]
[1768701418130,1.35185245,3302.2,3301.6,0.97937057]
[1768701418336,1.35185245,3302.1,3301.6,0.97937057]
[1768701418531,1.3518501,3302.0,3301.6,0.97937057]
[1768701418830,1.04476898,3301.9,3301.4,0.97937057]
[1768701419032,0.00270232,3302.3,3301.4,0.97937057]
[1768701419337,1.34790255,3302.2,3301.4,0.97937057]
[1768701419534,1.34790255,3302.1,3301.4,0.97937057]
[1768701419830,1.34790255,3302.0,3301.4,0.97937057]
[1768701420032,1.04576697,3301.9,3301.4,0.97937057]
[1768701420233,0.00270232,3302.3,3301.4,0.97937057]
[1768701420532,1.34794077,3302.2,3301.4,0.97937057]
[1768701420731,1.34794077,3302.1,3301.4,0.97937057]
[1768701420931,1.34794077,3302.0,3301.4,0.97937057]
[1768701421132,1.04580263,3301.9,3301.4,0.97937057]
[1768701421330,0.00270232,3302.3,3301.4,0.97937057]
[1768701421540,1.34796369,3302.2,3301.4,0.97937057]
[1768701421733,1.34796369,3302.1,3301.4,0.97937057]
[1768701421933,1.04582361,3302.0,3301.4,0.97937057]
[1768701422132,0.00270232,3302.3,3301.4,0.97937057]
[1768701422337,1.34795304,3302.2,3301.4,0.97937057]
[1768701422533,1.34795304,3302.1,3301.4,0.97937057]
[1768701422735,1.04581283,3302.0,3301.4,0.97937057]
[1768701422938,0.00270232,3302.3,3301.4,0.97937057]
[1768701423129,1.34798225,3302.2,3301.4,0.97937057]
[1768701423331,1.34798225,3302.1,3301.4,0.97937057]
[1768701423528,1.04583551,3302.0,3301.4,0.97937057]
[1768701423727,0.00270232,3302.3,3301.4,0.97937057]
[1768701423929,1.34801069,3302.2,3301.4,0.97937057]
[1768701424130,1.34801069,3302.1,3301.4,0.97937057]
[1768701424330,1.04585741,3302.0,3301.4,0.97937057]
[1768701424530,1.04585741,3301.9,3301.4,0.97937057]
[1768701424731,0.00270232,3302.3,3301.4,0.97937057]
[1768701425031,1.34765882,3302.2,3301.4,0.97937057]
[1768701425230,1.34765882,3302.1,3301.4,0.97937057]
[1768701425431,1.04558183,3302.0,3301.4,0.97937057]
[1768701425732,1.04558183,3301.9,3301.4,0.97937057]
[1768701426036,0.00270232,3302.3,3301.4,0.97937057]
[1768701426237,1.34767717,3302.2,3301.4,0.97937057]
[1768701426433,1.34767717,3302.1,3301.4,0.97937057]
[1768701426634,1.04559866,3302.0,3301.4,0.97937057]
[1768701426829,1.04559866,3301.9,3301.4,0.97937057]
[1768701427137,0.00270232,3302.3,3301.4,0.97937057]
[1768701427438,1.34777789,3302.2,3301.4,0.97937057]
[1768701427637,1.34778548,3302.1,3301.4,0.97937057]
[1768701427838,1.04567639,3302.0,3301.4,0.97937057]
[1768701428039,1.04567639,3301.9,3301.4,0.97937057]
[1768701428338,0.00270232,3302.3,3301.4,0.97937057]
[1768701428633,1.34382559,3302.2,3301.4,0.97937057]
[1768701428837,1.34382559,3302.1,3301.4,0.97937057]
[1768701429049,1.04167834,3302.0,3301.4,0.97937057]
[1768701429239,1.04167834,3301.9,3301.4,0.97937057]
[1768701429438,0.00270232,3302.3,3301.4,0.97937057]
[1768701429640,1.3440603,3302.2,3301.4,0.97937057]
[1768701429839,1.3440603,3302.1,3301.4,0.97937057]
[1768701430041,1.04186017,3302.0,3301.4,0.97937057]
[1768701430242,1.04186017,3301.9,3301.4,0.97937057]
[1768701430431,0.00270232,3302.3,3301.4,0.97937057]
[1768701430627,1.34410596,3302.2,3301.4,0.97937057]
[1768701430827,1.34410596,3302.1,3301.4,0.97937057]
[1768701431027,1.04189551,3302.0,3301.4,0.97937057]
[1768701431234,1.04189551,3301.9,3301.4,0.97937057]
[1768701431429,0.00270232,3302.3,3301.4,0.97937057]
[1768701431629,1.34415579,3302.2,3301.4,0.97937057]
[1768701431830,1.34415579,3302.1,3301.4,0.97937057]
[1768701432033,1.04193409,3302.0,3301.4,0.97937057]
[1768701432243,1.04193409,3301.9,3301.4,0.97937057]
[1768701432444,0.00270232,3302.3,3301.4,0.97937057]
[1768701432647,1.34412613,3302.2,3301.4,0.97937057]
[1768701432841,1.34412613,3302.1,3301.4,0.97937057]
[1768701433143,1.04191128,3302.0,3301.4,0.97937057]
[1768701433441,1.04191128,3301.9,3301.4,0.97937057]
[1768701433745,0.00270232,3302.3,3301.6,0.97937057]
[1768701433945,0.30220934,3302.2,3301.6,0.97937057]
[1768701434134,0.00270232,3302.3,3301.6,0.97937057]
[1768701434334,0.30220934,3302.2,3301.6,0.97937057]
[1768701434540,0.30220934,3302.1,3301.6,0.97937057]
[1768701434747,0.00270232,3302.3,3301.6,0.97937057]
[1768701435050,0.30220122,3302.2,3301.6,0.97937057]
[1768701435345,0.30220122,3302.1,3301.6,0.97937057]
[1768701435546,0.00270232,3302.3,3301.6,0.97937057]
[1768701435747,0.30219553,3302.2,3301.6,0.97937057]
[1768701435943,0.30219553,3302.1,3301.6,0.97937057]
[1768701436243,0.00270232,3302.3,3301.6,0.97937057]
[1768701436443,0.30219135,3302.2,3301.6,0.97937057]
[1768701436645,0.30219135,3302.1,3301.6,0.97937057]
[1768701436840,0.00270232,3302.3,3301.6,0.97937057]
[1768701437144,0.30219127,3302.2,3301.6,0.97937057]
[1768701437344,0.30219127,3302.1,3301.1,0.97918962]
[1768701437544,0.00270232,3302.3,3301.1,0.97918962]
[1768701437738,0.3021924,3302.2,3301.1,0.97918962]
[1768701437943,0.3021924,3302.1,3301.1,1.3616515]
[1768701438242,0.00270232,3302.3,3301.1,1.3616515]
[1768701438447,0.30219513,3302.2,3301.1,1.3616515]
[1768701438642,0.30219513,3302.1,3301.1,1.3616515]
[1768701438938,0.00270232,3302.3,3301.1,1.3616515]
[1768701439133,0.29694752,3302.2,3301.1,1.3616515]
[1768701439342,0.29694752,3302.1,3301.1,1.3616515]
[1768701439544,0.00270232,3302.3,3301.1,1.3616515]
[1768701439843,0.29695202,3302.2,3301.1,1.3616515]
[1768701440041,0.00270232,3302.3,3301.1,1.3616515]
[1768701440042,0.29695202,3302.1,3301.1,1.3616515]
[1768701440243,0.00270232,3302.3,3301.1,1.3616515]
[1768701440445,0.29695807,3302.2,3301.1,1.3616515]
[1768701440645,0.00270232,3302.3,3301.2,0.38246188]
[1768701440833,0.29695646,3302.2,3301.2,0.38246188]
[1768701441036,0.00270232,3302.3,3301.2,0.38246188]
[1768701441241,0.29695648,3302.2,3301.2,0.38246188]
[1768701441440,0.00270232,3302.3,3301.2,0.38246188]
[1768701441642,0.29695413,3302.2,3301.2,0.38246188]
[1768701441948,0.00270232,3302.3,3301.2,0.38246188]
[1768701442150,0.29694928,3302.2,3301.2,0.38246188]
[1768701442348,0.00270232,3302.3,3301.2,0.38246188]
[1768701442648,0.2969453,3302.2,3301.2,0.38246188]
[1768701442851,0.00270232,3302.3,3301.2,0.38246188]
[1768701443051,0.29694523,3302.2,3301.2,0.38246188]
[1768701443348,0.00270232,3302.3,3301.2,0.38246188]
[1768701443549,0.29694162,3302.2,3301.2,0.38246188]
[1768701443849,0.00270232,3302.3,3301.2,0.38246188]
[1768701444059,0.29692607,3302.2,3301.2,0.38246188]
[1768701444255,0.00270232,3302.3,3301.2,0.38246188]
[1768701444453,0.29692303,3302.2,3301.2,0.38246188]
[1768701444653,0.00270232,3302.3,3301.2,0.38246188]
[1768701444946,0.29692216,3302.2,3301.2,0.38246188]
[1768701445148,0.00270232,3302.3,3301.2,0.38246188]
[1768701445344,0.29692199,3302.2,3301.2,0.38246188]
[1768701445539,1.03724925,3302.1,3301.2,0.38246188]
[1768701445745,0.00270232,3302.3,3301.2,0.38246188]
[1768701445953,1.33416985,3302.2,3301.2,0.38246188]
[1768701446144,1.03724906,3302.1,3301.2,0.38246188]
[1768701446346,0.00270232,3302.3,3301.2,0.38246188]
[1768701446545,0.29692175,3302.2,3301.2,0.38246188]
[1768701446856,0.00270232,3302.3,3301.2,0.38246188]
[1768701447449,1.6319606,3302.8,3301.5,0.97918962]
[1768701448249,1.6319606,3302.9,3301.5,0.97918962]
[1768701448455,1.6354976,3302.9,3301.5,0.97918962]
[1768701448954,1.6354976,3302.9,3301.2,0.38246188]
[1768701449557,2.02994171,3302.9,3301.2,0.38246188]
[1768701450058,0.39444411,3302.8,3301.2,0.38246188]
[1768701452752,0.39444411,3302.8,3301.5,0.97918962]
[1768701458364,1.03175989,3302.7,3301.5,0.97918962]
[1768701458562,1.03175989,3302.6,3301.5,0.97918962]
[1768701458763,1.32614438,3302.5,3301.5,0.97918962]
[1768701458957,1.03175989,3302.4,3301.5,0.97918962]
[1768701459262,0.003537,3302.9,3301.9,0.97918962]
[1768701459459,1.02873175,3302.8,3301.9,0.97918962]
[1768701459663,0.003537,3302.9,3301.9,0.97918962]
[1768701459961,1.02880101,3302.8,3301.9,0.97918962]
[1768701460159,1.6319606,3303.3,3302.0,0.40482356]
[1768701460362,0.40368739,3303.8,3302.3,0.97918962]
[1768701460564,0.40368739,3303.8,3302.0,1.38401318]
[1768701461255,0.40688024,3303.8,3302.0,1.38401318]
[1768701466261,0.40688024,3303.8,3301.6,0.40482356]
[1768701466467,0.40688024,3303.8,3301.6,1.38401318]
[1768701468869,0.00319285,3303.8,3302.4,0.97918962]
[1768701472272,1.02084538,3303.7,3302.4,0.97918962]
[1768701472567,0.00319285,3303.8,3302.4,0.97918962]
[1768701472767,1.02084519,3303.7,3302.4,0.97918962]
[1768701472968,0.00319285,3303.8,3302.4,0.97918962]
[1768701473171,1.02084519,3303.7,3302.4,0.97918962]
[1768701473368,0.00319285,3303.8,3302.4,0.97918962]
[1768701473564,1.02083136,3303.7,3302.4,0.97918962]
[1768701473764,0.00319285,3303.8,3302.4,0.97918962]
[1768701473971,1.02083176,3303.7,3302.4,0.97918962]
[1768701474173,1.02083176,3303.6,3302.4,0.97918962]
[1768701474473,0.00319285,3303.8,3302.4,0.97918962]
[1768701474667,1.02084772,3303.7,3302.4,0.97918962]
[1768701474868,1.02084772,3303.6,3302.4,0.97918962]
[1768701475070,0.00319285,3303.8,3302.4,0.97918962]
[1768701475259,1.02084747,3303.7,3302.4,0.97918962]
[1768701475462,0.00319285,3303.8,3301.7,0.15148]
[1768701475463,0.41838135,3303.5,3301.7,0.15148]
[1768701475673,0.41838135,3303.3,3301.7,0.15148]
[1768701478767,0.00319285,3303.8,3301.8,0.42096617]
[1768701478974,0.41838135,3303.6,3302.0,0.97918962]
[1768701479169,1.43969435,3303.5,3302.0,0.97918962]
[1768701479368,1.021313,3303.4,3302.0,0.97918962]
[1768701481470,1.021313,3303.4,3302.0,1.40015579]
[1768701481687,1.021313,3303.4,3302.4,0.97918962]
[1768701484081,0.4215742,3303.8,3302.4,0.97918962]
[1768701484287,1.02207495,3303.7,3302.4,0.97918962]
[1768701484488,1.02207495,3303.6,3302.4,0.97918962]
[1768701484785,0.4215742,3303.8,3302.4,0.97918962]
[1768701484986,1.02225367,3303.7,3302.4,0.97918962]
[1768701485187,1.02225367,3303.6,3302.4,0.97918962]
[1768701485389,1.02225367,3303.5,3302.4,0.97918962]
[1768701485591,0.4215742,3303.8,3302.4,0.97918962]
[1768701485779,1.30659813,3303.7,3302.4,0.97918962]
[1768701486079,1.02251785,3303.6,3302.4,0.97918962]
[1768701486279,1.02251785,3303.5,3302.4,0.97918962]
[1768701486494,0.4215742,3303.8,3302.4,0.97918962]
[1768701486695,1.3070202,3303.7,3302.4,0.97918962]
[1768701486896,1.02283891,3303.6,3302.4,0.97918962]
[1768701487083,1.02283891,3303.5,3302.4,0.97918962]
[1768701487283,0.4215742,3303.8,3302.4,0.97918962]
[1768701487590,1.30755641,3303.7,3302.4,0.97918962]
[1768701487790,1.0232443,3303.6,3302.4,0.97918962]
[1768701487985,1.0232443,3303.5,3302.4,0.97918962]
[1768701488186,0.4215742,3303.8,3302.0,1.40015579]
[1768701488388,0.41838135,3303.6,3302.0,1.40015579]
[1768701488687,1.02377059,3303.5,3302.0,1.40015579]
[1768701488888,1.02377059,3303.4,3302.0,1.40015579]
[1768701489085,0.41838135,3303.6,3302.0,1.40015579]
[1768701489286,1.30551643,3303.5,3302.0,1.40015579]
[1768701489589,0.41838135,3303.6,3302.0,1.40015579]
[1768701489590,1.02077509,3303.4,3302.0,1.40015579]
[1768701489794,1.02077509,3303.3,3302.0,1.40015579]
[1768701489993,0.41838135,3303.6,3302.0,1.40015579]
[1768701490200,1.30635026,3303.5,3302.0,1.40015579]
[1768701490492,1.02160892,3303.4,3302.0,1.40015579]
[1768701490694,1.02160892,3303.3,3302.0,1.40015579]
[1768701490886,0.41838135,3303.5,3302.0,1.40015579]
[1768701491195,1.30678656,3303.4,3302.0,1.40015579]
[1768701491391,1.02203217,3303.3,3302.0,1.40015579]
[1768701491694,0.41838135,3303.5,3302.0,1.40015579]
[1768701491994,1.30681658,3303.4,3302.0,1.40015579]
[1768701492196,1.02206224,3303.3,3302.0,1.40015579]
[1768701492395,0.41838135,3303.5,3302.0,1.40015579]
[1768701492592,1.30681644,3303.4,3302.0,1.40015579]
[1768701492792,1.02206214,3303.3,3302.0,1.40015579]
[1768701492987,1.02207072,3303.2,3302.0,0.97918962]
[1768701493189,0.41838135,3303.5,3301.9,0.97918962]
[1768701493389,1.72519054,3303.4,3301.9,0.97918962]
[1768701493590,1.02205405,3303.3,3301.9,0.97918962]
[1768701493790,1.02205405,3303.2,3301.9,0.97918962]
[1768701494098,0.41838135,3303.4,3301.9,0.97918962]
[1768701494302,1.02203854,3303.3,3301.9,0.97918962]
[1768701494599,1.02203854,3303.2,3301.9,0.97918962]
[1768701494798,0.41838135,3303.4,3301.9,0.97918962]
[1768701494996,1.02202933,3303.3,3301.9,0.97918962]
[1768701495197,1.02202933,3303.2,3301.9,0.97918962]
[1768701495399,0.41838135,3303.4,3301.9,0.97918962]
[1768701495696,1.02200799,3303.3,3301.9,0.97918962]
[1768701495896,1.02200799,3303.2,3301.9,0.97918962]
[1768701496098,0.41838135,3303.4,3301.9,0.97918962]
[1768701496293,1.02201043,3303.3,3301.9,0.97918962]
[1768701496493,1.02201043,3303.2,3301.9,0.97918962]
[1768701496700,0.41838135,3303.4,3301.9,0.97918962]
[1768701496905,1.02200114,3303.3,3301.9,0.97918962]
[1768701497096,1.02200114,3303.2,3301.9,0.97918962]
[1768701497297,0.41838135,3303.4,3301.9,0.97918962]
[1768701497505,1.02203352,3303.3,3301.9,0.97918962]
[1768701497697,1.02203352,3303.2,3301.9,0.97918962]
[1768701497900,0.41838135,3303.4,3301.9,0.97918962]
[1768701498094,1.02203352,3303.3,3301.9,0.97918962]
[1768701498295,1.02203352,3303.2,3301.9,0.97918962]
[1768701498602,0.41838135,3303.4,3301.9,0.97918962]
[1768701498802,1.02206648,3303.3,3301.9,0.97918962]
[1768701498997,1.02206648,3303.2,3301.9,0.97918962]
[1768701499199,0.41838135,3303.4,3301.9,0.97918962]
[1768701499401,1.02205858,3303.3,3302.5,0.97870264]
[1768701499693,1.02205858,3303.2,3302.5,0.97870264]
[1768701499893,0.41838135,3303.4,3302.5,0.97870264]
[1768701500092,1.02205933,3303.3,3302.5,0.97870264]
[1768701500296,1.02205933,3303.2,3302.5,0.97870264]
[1768701500507,0.41838135,3303.4,3302.5,0.97870264]
[1768701500708,1.02205927,3303.3,3302.5,0.97870264]
[1768701501002,1.02205927,3303.2,3302.5,0.97870264]
[1768701501194,0.41838135,3303.4,3302.5,0.97870264]
[1768701501399,1.02206976,3303.3,3302.5,0.97870264]
[1768701501599,1.02206976,3303.2,3302.0,0.97870264]
[1768701501799,0.41838135,3303.4,3302.4,0.97870264]
[1768701502003,1.0220712,3303.3,3302.4,0.97870264]
[1768701502301,1.0220712,3303.2,3302.4,0.97870264]
[1768701502501,0.41838135,3303.4,3302.4,0.97870264]
[1768701502697,1.02208706,3303.3,3302.4,0.97870264]
[1768701502904,1.02208706,3303.2,3302.4,0.97870264]
[1768701503204,0.41838135,3303.4,3302.4,0.97870264]
[1768701503399,1.02210814,3303.3,3302.4,0.97870264]
[1768701503603,1.02210814,3303.2,3302.4,0.97870264]
[1768701503804,0.41838135,3303.4,3302.4,0.97870264]
[1768701504104,1.02210814,3303.3,3302.4,0.97870264]
[1768701504305,1.02210814,3303.2,3302.4,0.97870264]
[1768701504504,0.41838135,3303.4,3302.4,0.97870264]
[1768701504704,1.30679108,3303.3,3302.4,0.97870264]
[1768701504906,1.02204235,3303.2,3302.4,0.97870264]
[1768701505106,0.41838135,3303.4,3302.4,0.97870264]
[1768701505313,1.30679279,3303.3,3302.4,0.97870264]
[1768701505613,1.02204378,3303.2,3302.4,0.97870264]
[1768701505913,0.41838135,3303.4,3302.4,0.97870264]
[1768701506113,1.30681402,3303.3,3302.4,0.97870264]
[1768701506312,1.02206041,3303.2,3302.4,0.97870264]
[1768701506513,0.41838135,3303.4,3302.4,0.97870264]
[1768701506705,1.30680413,3303.3,3302.4,0.97870264]
[1768701506901,1.02205261,3303.2,3302.4,0.97870264]
[1768701507216,0.41838135,3303.4,3302.4,0.97870264]
[1768701507412,1.30677772,3303.3,3302.6,0.97870264]
[1768701507715,1.30677772,3303.3,3301.7,0.15148]
[1768701507716,1.02203217,3303.2,3302.3,0.97870264]
[1768701507916,0.41838135,3303.4,3302.3,0.97870264]
[1768701508118,1.30675011,3303.3,3302.3,0.97870264]
[1768701508318,1.02200996,3303.2,3302.3,0.97870264]
[1768701508519,0.41838135,3303.4,3302.3,0.97870264]
[1768701508720,1.30672569,3303.3,3302.3,0.97870264]
[1768701508914,1.02199086,3303.2,3302.3,0.97870264]
[1768701509120,0.41838135,3303.4,3302.3,0.97870264]
[1768701509322,1.3067024,3303.3,3302.3,0.97870264]
[1768701509522,1.02197268,3303.2,3302.3,0.97870264]
[1768701509725,0.41838135,3303.4,3302.3,0.97870264]
[1768701510022,1.30649134,3303.3,3302.3,0.97870264]
[1768701510223,1.0218076,3303.2,3302.3,0.97870264]
[1768701510413,0.41838135,3303.4,3302.3,0.97870264]
[1768701510608,1.30647309,3303.3,3301.7,0.59521547]
[1768701510921,1.02179336,3303.2,3302.4,0.97870264]
[1768701511121,0.41838135,3303.4,3302.4,0.97870264]
[1768701511320,1.30646086,3303.3,3302.4,0.97870264]
[1768701511521,1.02178543,3303.2,3302.4,0.97870264]
[1768701511720,0.41838135,3303.4,3302.4,0.97870264]
[1768701511922,1.30645433,3303.3,3302.4,0.97870264]
[1768701512123,1.02177869,3303.2,3302.4,0.97870264]
[1768701512322,0.41838135,3303.4,3302.4,0.97870264]
[1768701512522,1.30644186,3303.3,3302.4,0.97870264]
[1768701512724,1.02176895,3303.2,3302.4,0.97870264]
[1768701512919,0.41838135,3303.4,3302.4,0.97870264]
[1768701513122,1.3063968,3303.3,3302.4,0.97870264]
[1768701513321,1.02173371,3303.2,3302.4,0.97870264]
[1768701513519,0.41838135,3303.4,3302.4,0.97870264]
[1768701513722,1.30638415,3303.3,3302.4,0.97870264]
[1768701513920,1.02172384,3303.2,3302.4,0.97870264]
[1768701514120,0.41838135,3303.4,3302.4,0.97870264]
[1768701514427,1.73847211,3303.3,3301.7,0.44373547]
[1768701514622,1.73845581,3303.2,3302.0,0.97870264]
[1768701514822,1.02173212,3303.1,3302.0,0.97870264]
[1768701515018,1.02173212,3303.0,3302.0,0.97870264]
[1768701515327,0.43207522,3303.2,3302.0,0.97870264]
[1768701515528,1.02156415,3303.1,3302.0,0.97870264]
[1768701515830,1.02156415,3303.0,3302.0,0.97870264]
[1768701516030,0.43207522,3303.2,3302.0,0.97870264]
[1768701516329,1.02147529,3303.1,3302.0,0.97870264]
[1768701516527,1.02147529,3303.0,3302.0,0.97870264]
[1768701516834,0.43207522,3303.2,3302.0,0.97870264]
[1768701517038,1.02147503,3303.1,3302.0,0.97870264]
[1768701517241,1.02147503,3303.0,3302.0,0.97870264]
[1768701517536,0.43207522,3303.2,3302.0,0.97870264]
[1768701517739,1.02141163,3303.1,3302.0,0.97870264]
[1768701517937,1.02141163,3303.0,3302.0,0.97870264]
[1768701518140,0.43207522,3303.2,3302.0,0.97870264]
[1768701518331,1.02136152,3303.1,3302.0,0.97870264]
[1768701518534,1.02136152,3303.0,3302.0,0.97870264]
[1768701518838,0.43207522,3303.2,3302.0,0.97870264]